Workbook

Sheet 1999_00-Deutsch (hidden)
A1: Asclepion-Meditec AG
A2: Kapitalflussrechnung
A3: für die Geschäftsjahre zum 30. September 2000 und 2001
G5: 1.95583
G6: 30. September | I6: 30. September
G7: 2000 | I7: 2001
G8: TDM | I8: TDM
A11: Cash Flow aus laufender Geschäftstätigkeit:
B12: Jahresüberschuss | G12: 3827 | I12: -14865
B13: Anpassung zur Überleitung des Jahresüberschusses/Jahresfehlbetrags
B14: zur Nettoveränderung der liquiden Mittel aus laufender Geschäftstätigkeit:
C15: Abschreibungen | G15: 2273 | I15: 2334
C16: Verluste /(Gewinne) aus Abgang von Sachanlagevermögen | G16: -72 | I16: 85
C17: Zahlungsunwirksame Erträge | G17: 0 | I17: =-(4418+5400+4271+794) -> -14883
C18: Zuführung zu Wertberichtigungen | G18: 0 | I18: 13190
C19: Auswirkung von Wechselkursänderungen | G19: -1815 | I19: 0
C20: Anpassung Ertragsteuern für Kosten im Zusammenhang mit dem Börsengang | G20: 5291 | I20: 0
C21: Latente Steuern | G21: -706 | I21: =-4271+505 -> -3766
C22: Veränderung bei Vermögensgegenständen und Verbindlichkeiten:
C23: Erhöhung der Forderungen an verbundene Unternehmen | D23: (Erhöhung) / Verringerung der Forderungen
E24: und Dritte | G24: -23032 | I24: -3319
C25: Erhöhung Vorräte | D25: Erhöhung Vorräte | G25: -1529 | I25: -8688
C26: (Erhöhung) / Verringerung der aktiven Rechnungs- | D26: (Erhöhung) / Verringerung der aktiven Rechnungs-
E27: abgrenzung und sonstiger Vermögensgegenstände | G27: -1432 | I27: -4835
C28: (Erhöhung) / Verringerung aktivierter Börseneinführungskosten | D28: Erhöhung aktivierter Börseneinführungskosten | G28: 500 | I28: 0
C29: Erhöhung / (Verringerung) der Verbindlichkeiten | D29: Erhöhung / (Verringerung) der Verbindlichkeiten
E30: an verbundene Unternehmen und Dritte | G30: 1616 | I30: =-523 -> -523
C31: Erhöhung / (Verringerung) der Rückstellungen, passiven | D31: Erhöhung / (Verringerung) der Rückstellungen, passiven
E32: Rechnungsabgrenzungen und sonstigen Verbindlichkeiten | G32: 3088 | I32: 1311
E33: Gesamte Anpassungen | G33: =SUM(G15:G32)-1 -> -15819 | I33: =SUM(I15:I32) -> -19094
D34: Netto-Kapitalzufluss (-abfluss) aus laufender Geschäftstätigkeit | E34: Netto-Kapitalabfluss aus laufender Geschäftstätigkeit | G34: =+G12+G33 -> -11992 | I34: =+I12+I33 -> -33959
A35: Cash Flow aus der Investitionstätigkeit:
B36: Erwerb von Sachanlagevermögen | G36: -2255 | I36: -17862
B37: Erlöse aus dem Verkauf von Sachanlagevermögen | G37: 125 | I37: 14
B38: Erwerb von Minderheitenbeteiligungen an nahestehenden Unternehmen | G38: -3548 | I38: -1301
B39: Gewährung von Darlehen | G39: -113 | I39: -6984
E40: Netto-Kapitalabfluss aus Investitionstätigkeit | G40: =SUM(G36:G39) -> -5791 | I40: =SUM(I36:I39) -> -26133
A41: Cash Flow aus Finanzierungstätigkeit:
B42: Einnahmen aus der Ausgabe von Stückaktien | G42: 113994 | I42: 0
B43: Aufnahme kurzfristiger Kredite | G43: 86 | I43: 3162
B44: Rückzahlung kurzfristiger Kredite | G44: -29386 | I44: -86
B45: Aufnahme langfristiger Kredite | G45: 125 | I45: 10500
B46: Rückzahlung langfristiger Kredite | G46: -1914 | I46: -90
B47: Rückzahlungen unter Leasingverträgen | G47: -80 | I47: -686
B48: Erlöse aus Sale/Leaseback Transaktion | G48: 980 | I48: 2681
E49: Netto-Kapitalzufluss aus Finanzierungstätigkeit | G49: =SUM(G42:G48) -> 83805 | I49: =SUM(I42:I48) -> 15481
A50: Auswirkung von Wechselkursänderungen | G50: -10 | I50: 23
A51: Netto-Erhöhung (Verringerung) der liquiden Mittel | G51: =+G34+G40+G49+G50-1 -> 66011 | I51: =+I34+I40+I49+I50 -> -44588
A52: Liquide Mittel am Jahresbeginn | G52: 168 | I52: 66179
A53: Liquide Mittel am Jahresende | G53: =+G51+G52 -> 66179 | I53: =+I51+I52 -> 21591
A55: Ergänzende Angaben zum Cash Flow:
B56: gezahlte Zinsen | G56: 361.9946519 | I56: 850
B57: gezahlte Steuern vom Einkommen und Ertrag | G57: 1012.357925 | I57: 1265
A59: Nicht zahlungswirksame Investitions- und Finanzierungstätigkeiten
B60: Umwandlung der Kapitalrücklage in Grundkapital | G60: 3748.792073 | I60: 0
B61: Umwandlung Verbindlichkeiten für deferred shares in Grundkapital | G61: 199.9151255 | I61: 0
B62: Umwandlung Verbindlichkeiten für deferred shares in Kapitalrücklage | G62: 399.8302511 | I62: 0
B63: Umbuchung von Vorratsvermögen in Sachanlagevermögen | G63: 161 | I63: 369
B64: Umbuchung von Forderungen aus Lieferungen und Leistungen
C65: in Finanzanlagen | G65: 0 | I65: 6260
A68: Auf die nachfolgenden Erläuterungen im Anhang wird verwiesen

Sheet CF Deutsch
A2: Carl Zeiss Meditec AG
A3: Konzern-Kapitalflussrechnung (IFRS) 1. Oktober 2014 bis 31. Dezember 2014
G5: Geschäftsjahr 2014/2015 | I5: Geschäftsjahr 2013/2014
G6: 1. Oktober 2014 - | I6: 1. Oktober 2013 -
F7: Anhang | G7: 31. Dezember 2014 | I7: 31. Dezember 2013
G8: € Tsd. | I8: =+G8 -> € Tsd.
A10: Cashflow aus der gewöhnlichen Geschäftstätigkeit:
B12: Konzernergebnis | G12: 19413 | I12: 21424
B14: Anpassung zur Überleitung des Konzernergebnisses
B15: zur Nettoveränderung der liquiden Mittel aus laufender Geschäftstätigkeit:
B17: Ertragsteueraufwand | F17: (7) | G17: 9226 | I17: 10413
B18: Ertrag aus der Veräußerung Mikroskopie-Geschäft Optronik | F18: (3) | I18: 0
B19: Zinsergebnis | F19: (6) | G19: 357 | I19: =877-709 -> 168
B20: Ergebnis aus At-Equity bewerteten Finanzanlagen | F20: (7) | I20: 0
B21: Ergebnis aus sonstigen Beteiligungen | F21: (6) | I21: 0
B22: Abschreibungen | F22: (11) (12) | G22: 4613 | I22: 4046
B23: Wertaufholungen | F23: (11) | I23: 0
B24: Abschreibungen auf Finanzanlagen | F24: (7) | I24: 0
B25: Gewinne/Verluste aus Abgang/Abwertung von Anlagevermögen | G25: 24 | I25: -190
B26: Erhaltene Dividenden | I26: 0
B27: Erhaltene Zinsen | G27: 111 | I27: 116
B28: Gezahlte Zinsen | G28: -321 | I28: -289
B29: Erstattete Ertragsteuern | G29: 657 | I29: 985
B30: Gezahlte Ertragsteuern | G30: -10475 | I30: -15715
B31: Sonstige zahlungsunwirksame Erträge | F31: (3) | I31: 0
B33: Veränderungen des Working Capitals:
C35: Forderungen aus Lieferungen und Leistungen | F35: (16) | G35: -13436 | I35: 15928
C36: Vorräte | F36: (15) | G36: -10948 | I36: -15546
C37: Sonstige Vermögenswerte | F37: (14) (17) (18) | G37: -754 | I37: -5787
C38: Verbindlichkeiten aus Lieferungen und Leistungen | G38: -13718 | I38: -16810
C39: Ertragsteuerverbindlichkeiten | I39: 0
C40: Rückstellungen und finanzielle Verbindlichkeiten | F40: (21) (22) (24) | G40: -331 | I40: =-7117+709 -> -6408 | L40: Vorjahr angepasst an Zinssaldo Darstellung ab Q4
C41: Sonstige Verbindlichkeiten | F41: (25) | G41: 6700 | I41: 1635
B43: Gesamte Anpassungen | G43: =SUM(G17:G42) -> -28295 | I43: =SUM(I17:I42) -> -27454
B44: Netto-Kapitalzufluss aus der gewöhnlichen Geschäftstätigkeit | G44: =+G12+G43 -> -8882 | I44: =+I12+I43 -> -6030
A46: Cashflow aus der Investitionstätigkeit:
B48: Veränderung liquide Mittel mit Verfügungsbeschränkung | G48: 0 | I48: 0
B49: Investitionen in Sachanlagen | F49: (12) | G49: -2900 | I49: -2538
B50: Investitionen in sonstige immaterielle Vermögenswerte | F50: (11) | G50: -1406 | I50: -64
B51: Investitionen in Planvermögen | F51: (24) | I51: 0
B52: Erlöse aus dem Verkauf von Anlagevermögen | G52: 9 | I52: 403
B53: Erwerb von nach der Equity Methode bilanzierten Beteiligungen | G53: -1975 | I53: 0
B54: Einzahlungen aus Festgeldanlagen
B55: Auszahlungen für Festgeldanlagen
B56: Verkauf von Wertpapieren | F56: (28)
B57: Erwerb des chirurgischen Geschäftes (Carl Zeiss Surgical GmbH, Carl Zeiss Surgical Inc.) gegen Gewährung von Aktien
B58: Erwerb IOL/OVD - Geschäft IMEX Clinic S.L., Spanien | F58: (3) | G58: 0 | I58: -716
B59: Erwerb Optronik A.S., Türkei, abzgl. erhaltener Finanzmittel | F59: (3) | G59: 0 | I59: -10843
C60: (Optronik A.S., Türkei: | I60: 0
C61: Aaren Scientific Inc., USA:) | I61: 0
B62: Einzahlungen aus der Veräußerung des Mikroskopie-Geschäftes der Optronik | I62: 0
B64: Netto-Kapitalabfluss aus der Investitionstätigkeit | G64: =SUM(G48:G62) -> -6272 | I64: =SUM(I48:I62) -> -13758
A66: Cashflow aus der Finanzierungstätigkeit:
B67: Aufnahme/(Rückzahlung) der kurzfristigen Kredite | G67: -334 | I67: 160
B68: Aufnahme/(Rückzahlung) der langfristigen Kredite | F68: (23) | G68: -119 | I68: -163
B69: Rückzahlungen von kurzfristigen Darlehen von nahe stehenden Unternehmen | F69: (35)
B70: Auszahlung aus der Gewährung kurzfristigen Darlehen an nahe stehenden Unternehmen
B71: Rückzahlungen von langfristigen Darlehen von nahe stehenden Unternehmen | F71: (26) (35)
B72: Einzahlungen aus der Übernahme von Pensionsverpflichtungen durch die Carl Zeiss Meditec Japan
B73: (Zunahme)/Abnahme der Forderungen aus Finanzausgleich | F73: (2t) (32) | G73: 6519 | I73: 22075
B74: Zunahme/(Abnahme) der Verbindlichkeiten aus Finanzausgleich | F74: (2t) (32) | G74: 8527 | I74: -460
B75: Rückzahlung von Wandelschuldverschreibungen der Ioltech
B76: Zunahme/(Abnahme) der Verbindlichkeiten aus Finanzierungsleasing | F76: (27) | G76: -568 | I76: -457
B77: Einnahmen aus Kapitalerhöhung | F77: (24)
B78: Kosten der Kapitalerhöhung (vor Steuern) | F78: (24)
B79: Dividendenzahlung an Minderheitsaktionäre der Carl Zeiss Meditec Co. Ltd. (Japan) | F79: (13)
B80: Dividendenzahlung an die Aktionäre der Carl Zeiss Meditec AG | F80: (9)
B81: Erwerb von Anteilen nicht-beherrschender Gesellschafter
B83: Netto-Kapitalzufluss/(-abfluss) aus der Finanzierungstätigkeit | G83: =SUM(G66:G82) -> 14025 | I83: =SUM(I66:I82) -> 21155
A85: Einfluss von Wechselkursänderungen auf Zahlungsmittel und Zahlungsmitteläquivalente | G85: =-4 -> -4 | I85: -369
A86: Zunahme/(Abnahme) der Zahlungsmittel und Zahlungsmitteläquivalente | G86: =+G44+G64+G83+G85 -> -1133 | I86: =+I44+I64+I83+I85 -> 998
A87: Zahlungsmittel und Zahlungsmitteläquivalente am Beginn des Berichtszeitraumes | F87: (19) | G87: 10727 | I87: 6286
A88: Zahlungsmittel und Zahlungsmitteläquivalente am Ende des Berichtszeitraumes | F88: (19) | G88: =+G86+G87 -> 9594 | I88: =+I86+I87 -> 7284
A92: Der nachfolgende Konzernanhang ist integraler Bestandteil des ungeprüften Konzernabschlusses.

Sheet CF_AR (hidden)
A1: Carl Zeiss Meditec AG
A2: selected positions
A3: Consolidated statement of cash flow (US GAAP)
F5: 1. October 2001 - | H5: 1. October 2002 -
F6: 30. June 2002 | H6: 30. June 2003
F7: Tsd. Euro | H7: Tsd. Euro
A10: Cash flow from operating activities
C11: Net income | F11: =+'CF Deutsch'!G12 -> 19413 | H11: =+'CF Deutsch'!I12 -> 21424
C12: Loss on disposal of discontinued operations | F12: =+'CF Deutsch'!#REF! ->  | H12: =+'CF Deutsch'!#REF! -> 
C13: Depreciation and amortisation | F13: =+'CF Deutsch'!#REF! ->  | H13: =+'CF Deutsch'!I22 -> 4046
C14: Trade accounts receivable | F14: =+'CF Deutsch'!G35 -> -13436 | H14: =+'CF Deutsch'!I35 -> 15928
C15: Inventories | F15: =+'CF Deutsch'!G36 -> -10948 | H15: =+'CF Deutsch'!I36 -> -15546
C16: Trade accounts payable | F16: =+'CF Deutsch'!G38 -> -13718 | H16: =+'CF Deutsch'!I38 -> -16810
C17: Accrued tax expenses | D17: Erhöhung Vorräte | F17: =+'CF Deutsch'!G39 -> 0 | H17: =+'CF Deutsch'!I39 -> 0
C18: Other accrued expenses and liabilities | D18: (Erhöhung) / Verringerung der aktiven Rechnungs- | F18: =+'CF Deutsch'!G40 -> -331 | H18: =+'CF Deutsch'!I40 -> -6408
A20: Cash flow from investing activities | F20: =+'CF Deutsch'!G64 -> -6272 | H20: =+'CF Deutsch'!I64 -> -13758
A22: Cash flow from financing activities
B23: Proceeds from issuance of short-term debt from related parties | F23: =+'CF Deutsch'!G69 -> 0 | H23: =+'CF Deutsch'!I69 -> 0
B24: Increase / (decrease) in liabilities due to Treasury | F24: =+'CF Deutsch'!#REF! ->  | H24: =+'CF Deutsch'!#REF! -> 
B25: (Increase) / decrease in accounts receivable due to Treasury | F25: =+'CF Deutsch'!G73 -> 6519 | H25: =+'CF Deutsch'!I73 -> 22075
A27: Net increase in cash (compared to Oct 1) | F27: =+'CF Deutsch'!G86 -> -1133 | H27: =+'CF Deutsch'!I86 -> 998
